{"text_format":"1","workbook":"xlsx","n_sheets":5,"sheets":["OPĆI DIO","PRIHODI","RASHODI - SŠ- ","dodatna konta","OBRAZLOŽENJE"],"not_rendered":{"charts":0,"images":0,"macros":0,"external_links":1,"defined_names":10,"comments":0,"pivot_tables":0},"unopened":[],"bounds":{"document_bytes":16777216,"sheet_cells":100000,"rows_first":2000,"rows_last":500,"rows_between":2000,"halvings":0,"cell_chars":16384,"cell_head_chars":4096},"cells_cut":0,"cells_raw":0,"read":"whole","date_system":"1900"}

{"sheet":"OPĆI DIO","index":0,"n_rows":26,"n_cols":8,"rows_kept":26,"cut":false,"hidden":false,"merged":[[15,0,15,4],[16,0,16,4],[25,0,25,7],[17,0,17,7],[19,0,19,4],[20,0,20,4],[21,0,21,4],[22,0,22,7],[23,0,23,4],[8,0,8,4],[10,0,10,4],[11,0,11,4],[12,0,12,4],[13,0,13,7],[1,0,1,7],[2,0,2,7],[3,0,3,7],[6,0,6,4],[7,0,7,4]]}
[]
[]
["PRIJEDLOG FINANCIJSKOG PLANA (proračunski korisnik) ZA 2020.\n I   PROJEKCIJA PLANA ZA  2020. I 2021. GODINU"]
["OPĆI DIO"]
[]
[null,null,null,null,null,"Projekcija plana\nza 2020.","Projekcija plana \nza 2021.","Projekcija plana \nza 2022."]
["PRIHODI UKUPNO",null,null,null,null,{"$f":"+F8+F9","v":8903500},{"$f":"G8+G9","v":8953474},{"$f":"+H8+H9","v":8987198}]
["PRIHODI POSLOVANJA",null,null,null,null,8903500,8953474,8987198]
["PRIHODI OD PRODAJE NEFINANCIJSKE IMOVINE"]
["RASHODI UKUPNO",null,null,null,null,{"$f":"+F11+F12","v":8903500},{"$f":"+G11+G12","v":8953474},{"$f":"+H11+H12","v":8987198}]
["RASHODI  POSLOVANJA",null,null,null,null,8643500,8933018,8966496]
["RASHODI ZA NABAVU NEFINANCIJSKE IMOVINE",null,null,null,null,260000,20456,20702]
["RAZLIKA - VIŠAK / MANJAK",null,null,null,null,{"$f":"+F7-F10","v":0},{"$f":"+G7-G10","v":0},{"$f":"+H7-H10","v":0}]
[]
[null,null,null,null,null,"Projekcija plana\nza 2020.","Projekcija plana \nza 2021.","Projekcija plana \nza 2022."]
["UKUPAN DONOS VIŠKA/MANJKA IZ PRETHODNE(IH) GODINA"]
["VIŠAK/MANJAK IZ PRETHODNE(IH) GODINE KOJI ĆE SE POKRITI/RASPOREDITI"]
[]
[null,null,null,null,null,"Projekcija plana\nza 2020.","Projekcija plana \nza 2021.","Projekcija plana \nza 2022."]
["PRIMICI OD FINANCIJSKE IMOVINE I ZADUŽIVANJA"]
["IZDACI ZA FINANCIJSKU IMOVINU I OTPLATE ZAJMOVA"]
["NETO FINANCIRANJE",null,null,null,null,{"$f":"F20-F21","v":0},{"$f":"G20-G21","v":0},{"$f":"H20-H21","v":0}]
[]
["VIŠAK / MANJAK + NETO FINANCIRANJE",null,null,null,null,{"$f":"IF((F13+F17+F22)<>0,\"NESLAGANJE ZBROJA\",(F13+F17+F22))","v":0},{"$f":"IF((G13+G17+G22)<>0,\"NESLAGANJE ZBROJA\",(G13+G17+G22))","v":0},{"$f":"IF((H13+H17+H22)<>0,\"NESLAGANJE ZBROJA\",(H13+H17+H22))","v":0}]
[]
["Napomena: Redak UKUPAN DONOS VIŠKA/MANJKA IZ PRETHODNE(IH) GODINA služi kao informacija i ne uzima se u obzir kod uravnoteženja proračuna, već se proračun uravnotežuje retkom VIŠAK/MANJAK IZ PRETHODNE(IH) GODINE KOJI ĆE SE POKRITI/RASPOREDITI."]

{"sheet":"PRIHODI","index":1,"n_rows":144,"n_cols":7,"rows_kept":144,"cut":false,"hidden":false,"merged":[[141,0,142,0],[141,1,141,2],[142,1,142,2],[143,1,143,2],[3,1,3,6],[4,1,4,6],[5,1,5,6],[132,1,132,2],[139,1,139,2],[140,1,140,2]]}
[null,null,null,null,null,null,"Tablica 1"]
[null,"NAZIV USTANOVE_____________________________","SŠ CENTAR ZA ODGOJ I OBRAZOVANJE, ZAGREB, Zagorska 14"]
[]
[null,"PLAN PRIHODA I PRIMITAKA 2020. - 2022."]
[]
[null,"1.1. PRIHODI I PRIMICI KOJI NISU DOBIVENI S RAČUNA PRORAČUNA GRADA ZAGREBA"]
[null,"KONTO","NAZIV","IZVOR FINANCIRANJA","PLAN 2020.","PLAN 2021.","PLAN 2022."]
[null,6,"PRIHODI POSLOVANJA ",null,{"$f":"E9+E33+E62+E72+E82+E79","v":7725500},{"$f":"F9+F33+F62+F72+F82+F79","v":7748574},{"$f":"G9+G33+G62+G72+G82+G79","v":7767998}]
["①",63,"Pomoći iz inozemstva i od subjekata unutar općeg proračuna \n",null,{"$f":"E10+E13+E18+E21+E24+E27+E30","v":7587500},{"$f":"F10+F13+F18+F21+F24+F27+F30","v":7607874},{"$f":"G10+G13+G18+G21+G24+G27+G30","v":7625998}]
[null,631,"Pomoći od inozemnih vlada ",null,{"$f":"E11+E12","v":0},{"$f":"F11+F12","v":0},{"$f":"G11+G12","v":0}]
[null,6311,"Tekuće pomoći od inozemnih vlada"]
[null,6312,"Kapitalne pomoći od inozemnih vlada"]
[null,632,"Pomoći od međunarodnih organizacija te institucija i tijela EU ",null,{"$f":"SUM(E14:E17)","v":0},{"$f":"SUM(F14:F17)","v":0},{"$f":"SUM(G14:G17)","v":0}]
[null,6321,"Tekuće pomoći od međunarodnih organizacija"]
[null,6322,"Kapitalne pomoći od međunarodnih organizacija"]
[null,6323,"Tekuće pomoći od institucija i tijela EU","51"]
[null,6324,"Kapitalne pomoći od institucija i tijela EU","51"]
[null,633,"Pomoći proračunu iz drugih proračuna ",null,{"$f":"SUM(E19:E20)","v":0},{"$f":"SUM(F19:F20)","v":0},{"$f":"SUM(G19:G20)","v":0}]
[null,6331,"Tekuće pomoći proračunu iz drugih proračuna ","52"]
[null,6332,"Kapitalne pomoći proračunu iz drugih proračuna ","52"]
[null,634,"Pomoći od izvanproračunskih korisnika ",null,{"$f":"SUM(E22:E23)","v":0},{"$f":"SUM(F22:F23)","v":0},{"$f":"SUM(G22:G23)","v":0}]
[null,6341,"Tekuće pomoći od izvanproračunskih korisnika","52"]
[null,6342,"Kapitalne pomoći od izvanproračunskih korisnika ","52"]
[null,635,"Pomoći izravnanja za decentralizirane funkcije",null,{"$f":"SUM(E25:E26)","v":0},{"$f":"SUM(F25:F26)","v":0},{"$f":"SUM(G25:G26)","v":0}]
[null,6351,"Tekuće pomoći izravnanja za decentralizirane funkcije","52"]
[null,6352,"Kapitalne pomoći izravnanja za decentralizirane funkcije","52"]
[null,"636","Pomoći proračunskim korisnicima iz proračuna koji im nije nadležan",null,{"$f":"SUM(E28:E29)","v":7587500},{"$f":"SUM(F28:F29)","v":7607874},{"$f":"SUM(G28:G29)","v":7625998}]
[null,"6361","Tekuće pomoći proračunskim korisnicima iz proračuna koji im nije nadležan","52",7587500,7607874,7625998]
[null,"6362","Kapitalne pomoći proračunskim korisnicima iz proračuna koji im nije nadležan","52"]
[null,"638","Pomoći iz državnog proračuna temeljem prijenosa  EU sredstava ",null,{"$f":"SUM(E31:E32)","v":0},{"$f":"SUM(F31:F32)","v":0},{"$f":"SUM(G31:G32)","v":0}]
[null,"6381","Tekuće pomoći iz državnog proračuna temeljem prijenosa  EU sredstava","56"]
[null,"6382","Kapitalne pomoći iz državnog proračuna temeljem prijenosa  EU sredstava","56"]
["②",64,"Prihodi od imovine ",null,{"$f":"E34+E42+E47+E55","v":0},{"$f":"F34+F42+F47+F55","v":0},{"$f":"G34+G42+G47+G55","v":0}]
[null,641,"Prihodi od financijske imovine  ",null,{"$f":"SUM(E35:E41)","v":0},{"$f":"SUM(F35:F41)","v":0},{"$f":"SUM(G35:G41)","v":0}]
[null,6412,"Prihodi od kamata po vrijednosnim papirima"]
[null,6413,"Kamate na oročena sredstva i depozite po viđenju","11"]
[null,6414,"Prihodi od zateznih kamata ","11"]
[null,6415,"Prihodi od pozitivnih tečajnih razlika i razlika zbog primjene valutne klauzule","11"]
[null,6416,"Prihodi od dividendi","11"]
[null,6417,"Prihodi iz dobiti trgovačkih društava, kreditnih i ostalih financijskih institucija po posebnim propisima","11"]
[null,6419,"Ostali prihodi od financijske imovine"]
[null,642,"Prihodi od nefinancijske imovine ",null,{"$f":"SUM(E43:E46)","v":0},{"$f":"SUM(F43:F46)","v":0},{"$f":"SUM(G43:G46)","v":0}]
[null,6422,"Prihodi od zakupa i iznajmljivanja imovine","11"]
[null,6423,"Naknada za korištenje nefinancijske imovine","43"]
[null,"6425","Prihodi od prodaje kratkotrajne nefinancijske imovine"]
[null,6429,"Ostali prihodi od nefinancijske imovine","43"]
[null,643,"Prihodi od kamata na dane zajmove ",null,{"$f":"SUM(E48:E54)","v":0},{"$f":"SUM(F48:F54)","v":0},{"$f":"SUM(G48:G54)","v":0}]
[null,6431,"Prihodi od kamata na dane zajmove međunarodnim organizacijama, institucijama i tijelima EU te inozemnim vladama"]
[null,6432,"Prihodi od kamata na dane zajmove neprofitnim organizacijama, građanima i kućanstvima","11"]
[null,6433,"Prihodi od kamata na dane zajmove kreditnim i ostalim financijskim institucijama u javnom sektoru"]
[null,6434,"Prihodi od kamata na dane zajmove trgovačkim društvima u javnom sektoru","11"]
[null,6435,"Prihodi od kamata na dane zajmove kreditnim i ostalim financijskim institucijama izvan javnog sektora"]
[null,6436,"Prihodi od kamata na dane zajmove trgovačkim društvima i obrtnicima izvan javnog sektora","11"]
[null,6437,"Prihodi od kamata na dane zajmove drugim razinama vlasti"]
[null,"644","Prihodi od kamata na dane zajmove po protestiranim jamstvima ",null,{"$f":"SUM(E56:E61)","v":0},{"$f":"SUM(F56:F61)","v":0},{"$f":"SUM(G56:G61)","v":0}]
[null,"6442","Prihodi od kamata na dane zajmove neprofitnim organizacijama, građanima i kućanstvima po protestiranim jamstvima"]
[null,"6443","Prihodi od kamata na dane zajmove kreditnim i ostalim financijskim institucijama u javnom sektoru  po protestiranim jamstvima"]
[null,"6444","Prihodi od kamata na dane zajmove trgovačkim društvima u javnom sektoru po protestiranim jamstvima"]
[null,"6445","Prihodi od kamata na dane zajmove kreditnim i ostalim financijskim institucijama izvan javnog sektora po protestiranim jamstvima"]
[null,"6446","Prihodi od kamata na dane zajmove trgovačkim društvima i obrtnicima izvan javnog sektora po protestiranim jamstvima"]
[null,"6447","Prihodi od kamata na dane zajmove drugim razinama vlasti po protestiranim jamstvima"]
["③",65,"Prihodi od upravnih i administrativnih pristojbi, pristojbi po posebnim propisima i naknada ",null,{"$f":"E63+E68","v":118000},{"$f":"F63+F68","v":120700},{"$f":"G63+G68","v":122000}]
[null,651,"Upravne i administrativne pristojbe ",null,{"$f":"SUM(E64:E67)","v":0},{"$f":"SUM(F64:F67)","v":0},{"$f":"SUM(G64:G67)","v":0}]
[null,6511,"Državne upravne i sudske pristojbe"]
[null,6512,"Županijske, gradske i općinske pristojbe i naknade","11"]
[null,6513,"Ostale upravne pristojbe i naknade","11"]
[null,6514,"Ostale pristojbe i naknade","43"]
[null,652,"Prihodi po posebnim propisima ",null,{"$f":"SUM(E69:E71)","v":118000},{"$f":"SUM(F69:F71)","v":120700},{"$f":"SUM(G69:G71)","v":122000}]
[null,6526,"Ostali nespomenuti prihodi","11",118000,120700,122000]
[null,"6527","Naknade od financijske imovine","11"]
[null,"6528","Prihodi od novčane naknade poslodavca zbog nezapošljavanje osoba s invaliditetom"]
["④",66,"Prihodi od prodaje proizvoda i robe te pruženih usluga i prihodi od donacija",null,{"$f":"E73+E76","v":20000},{"$f":"F73+F76","v":20000},{"$f":"G73+G76","v":20000}]
[null,661,"Prihodi od prodaje proizvoda i robe te pruženih usluga ",null,{"$f":"SUM(E74:E75)","v":20000},{"$f":"SUM(F74:F75)","v":20000},{"$f":"SUM(G74:G75)","v":20000}]
[null,6614,"Prihodi od prodaje proizvoda i robe","31",20000,20000,20000]
[null,6615,"Prihodi od pruženih usluga","31"]
[null,663,"Donacije od pravnih i fizičkih osoba izvan općeg proračuna",null,{"$f":"SUM(E77:E78)","v":0},{"$f":"SUM(F77:F78)","v":0},{"$f":"SUM(G77:G78)","v":0}]
[null,6631,"Tekuće donacije","61"]
[null,6632,"Kapitalne donacije","61"]
[null,"67","Prihodi iz nadležnog proračuna i HZZO-a na temelju ugovornih obveza",null,{"$f":"E80","v":0},0,0]
["⑤","673","Prihodi od HZZO-a na temelju ugovornih obveza",null,0,0,0]
[null,"6731","Prihodi od HZZO-a na temelju ugovornih obveza","43"]
["⑥",68,"Kazne, upravne mjere i ostali prihodi ",null,{"$f":"E83","v":0},0,0]
[null,683,"Ostali prihodi ",null,0,0,0]
[null,6831,"Ostali prihodi","11"]
[null,7,"Prihodi od prodaje nefinancijske imovine ",null,{"$f":"E86+E110","v":0},{"$f":"F86+F110","v":0},{"$f":"G86+G110","v":0}]
["⑦",72,"Prihodi od prodaje proizvedene dugotrajne imovine ",null,{"$f":"E87+E91+E99+E101+E106","v":0},{"$f":"F87+F91+F99+F101+F106","v":0},{"$f":"G87+G91+G99+G101+G106","v":0}]
[null,721,"Prihodi od prodaje građevinskih objekata ",null,{"$f":"SUM(E88:E90)","v":0},{"$f":"SUM(F88:F90)","v":0},{"$f":"SUM(G88:G90)","v":0}]
[null,7211,"Stambeni objekti","11"]
[null,7212,"Poslovni objekti","11"]
[null,7214,"Ostali građevinski objekti","11"]
[null,722,"Prihodi od prodaje postrojenja i opreme ",null,{"$f":"SUM(E92:E98)","v":0},{"$f":"SUM(F92:F98)","v":0},{"$f":"SUM(G92:G98)","v":0}]
[null,7221,"Uredska oprema i namještaj","11"]
[null,7222,"Komunikacijska oprema ","11"]
[null,7223,"Oprema za održavanje i zaštitu","11"]
[null,7224,"Medicinska i laboratorijska oprema","11"]
[null,7225,"Instrumenti, uređaji i strojevi ","11"]
[null,7226,"Sportska i glazbena oprema","11"]
[null,7227,"Uređaji, strojevi i oprema za ostale namjene","11"]
[null,723,"Prihodi od prodaje prijevoznih sredstava ",null,{"$f":"SUM(E100:E100)","v":0},{"$f":"SUM(F100:F100)","v":0},{"$f":"SUM(G100:G100)","v":0}]
[null,7231,"Prijevozna sredstva u cestovnom prometu","11"]
[null,724,"Prihodi od prodaje knjiga, umjetničkih djela i ostalih izložbenih vrijednosti ",null,{"$f":"SUM(E102:E105)","v":0},{"$f":"SUM(F102:F105)","v":0},{"$f":"SUM(G102:G105)","v":0}]
[null,7241,"Knjige","11"]
[null,7242,"Umjetnička djela (izložena u galerijama, muzejima i slično)","11"]
[null,7243,"Muzejski izlošci i predmeti prirodnih rijetkosti","11"]
[null,7244,"Ostale nespomenute izložbene vrijednosti","11"]
[null,726,"Prihodi od prodaje nematerijalne proizvedene imovine ",null,{"$f":"SUM(E107:E109)","v":0},{"$f":"SUM(F107:F109)","v":0},{"$f":"SUM(G107:G109)","v":0}]
[null,7262,"Ulaganja u računalne programe "]
[null,7263,"Umjetnička, literarna i znanstvena djela"]
[null,7264,"Ostala nematerijalna proizvedena imovina","11"]
["⑧",73,"Prihodi od prodaje plemenitih metala i ostalih pohranjenih vrijednosti ",null,{"$f":"E111","v":0},{"$f":"F111","v":0},{"$f":"G111","v":0}]
[null,731,"Prihodi od prodaje plemenitih metala i ostalih pohranjenih vrijednosti ",null,{"$f":"SUM(E112:E112)","v":0},{"$f":"SUM(F112:F112)","v":0},{"$f":"SUM(G112:G112)","v":0}]
[null,7312,"Pohranjene knjige, umjetnička djela i slične vrijednosti"]
[null,8,"Primici od financijske imovine i zaduživanja ",null,{"$f":"E114+E121+E124","v":0},{"$f":"F114+F121+F124","v":0},{"$f":"G114+G121+G124","v":0}]
["⑨","81","Primljeni povrati glavnice danih zajmova i depozita",null,{"$f":"E115+E117+E119","v":0},{"$f":"F115+F117+F119","v":0},{"$f":"G115+G117+G119","v":0}]
[null,"812","Primici (povrati) glavnice zajmova danih neprofitnim organizacijama, građanima i kućanstvima",null,{"$f":"E116","v":0},{"$f":"F116","v":0},{"$f":"G116","v":0}]
[null,"8121","Povrat  zajmova danih neprofitnim organizacijama, građanima i kućanstvima u tuzemstvu",11]
[null,813,"Primici (povrati) glavnice zajmova danih kreditnim i ostalim financijskim institucijama u javnom sektoru",null,{"$f":"E118","v":0},{"$f":"F118","v":0},{"$f":"G118","v":0}]
[null,8134,"Povrat zajmova danih ostalim financijskim institucijama u javnom sektoru"]
[null,"818",{"$f":"'[1]svi uredi'!B237","v":"Primici od povrata depozita i jamčevnih pologa"},null,{"$f":"E120","v":0},{"$f":"F120","v":0},{"$f":"G120","v":0}]
[null,8181,{"$f":"'[1]svi uredi'!B238","v":"Primici od povrata depozita od kreditnih i ostalih institucija- tuzemni"}]
["⑩",83,"Primici od prodaje dionica i udjela u glavnici",null,{"$f":"E122","v":0},0,0]
[null,833,"Primici od prodaje dionica i udjela u glavnici kreditnih i ostalih financijskih institucija izvan javnog sektora",null,0,0,0]
[null,8331,"Dionice i udjeli u glavnici tuzemnih kreditnih i ostalih financijskih institucija izvan javnog sektora",11]
["⑪",84,"Primici od zaduživanja ",null,{"$f":"E125+E127+E131","v":0},{"$f":"F125+F127+F131","v":0},{"$f":"G125+G127+G131","v":0}]
[null,"842","Primljeni krediti i zajmovi od kreditnih i ostalih financijskih institucija u javnom sektoru",null,{"$f":"E126","v":0},{"$f":"F126","v":0},{"$f":"G126","v":0}]
[null,"8422","Primljeni krediti i zajmovi od kreditnih institucija u javnom sektoru",81]
[null,844,"Primljeni krediti i zajmovi od kreditnih i ostalih financijskih institucija izvan javnog sektora ",null,{"$f":"SUM(E128:E130)","v":0},{"$f":"SUM(F128:F130)","v":0},{"$f":"SUM(G128:G130)","v":0}]
[null,8443,"Primljeni krediti od tuzemnih kreditnih institucija izvan javnog sektora","81"]
[null,8444,"Primljeni zajmovi od tuzemnih osiguravajućih društava izvan javnog sektora"]
[null,8445,"Primljeni zajmovi od ostalih tuzemnih financijskih institucija izvan javnog sektora","81"]
[null,"845","Primljeni zajmovi od trgovačkih društava i obrtnika izvan javnog sektora",null,{"$f":"E132","v":0},{"$f":"F132","v":0},{"$f":"G132","v":0}]
[null,"8453","Primljeni zajmovi od tuzemnih trgovačkih društava izvan javnog sektora","81"]
[null,"I. UKUPNO PRIHODI I PRIMICI KOJI NISU DOBIVENI S RAČUNA PRORAČUNA GRADA ZAGREBA",null,null,{"$f":"E113+E85+E8","v":7725500},{"$f":"F113+F85+F8","v":7748574},{"$f":"G113+G85+G8","v":7767998}]
[null,"1.2. PRIHODI I PRIMICI KOJI SU DOBIVENI S RAČUNA PRORAČUNA GRADA ZAGREBA"]
[null,"67","Prihodi iz nadležnog proračuna i HZZO-a na temelju ugovornih obveza",null,{"$f":"SUM(E136)","v":1178000},{"$f":"SUM(F136)","v":1204900},{"$f":"SUM(G136)","v":1219200}]
["⑫","671","Prihodi iz nadležnog proračuna za financiranje redovne djelatnosti proračunskih korisnika",null,{"$f":"SUM(E137:E139)","v":1178000},{"$f":"SUM(F137:F139)","v":1204900},{"$f":"SUM(G137:G139)","v":1219200}]
[null,"6711","Prihodi iz nadležnog proračuna za financiranje rashoda poslovanja","11",918000,938900,950200]
[null,"6712","Prihodi iz nadležnog proračuna za financiranje rashoda za nabavu nefinancijske imovine","11",260000,266000,269000]
[null,"6714","Prihodi iz nadležnog proračuna za financiranje izdataka za financijsku imovinu i otplatu zajmova","11"]
[null,"II. UKUPNO PRIHODI I PRIMICI KOJI SU DOBIVENI S RAČUNA PRORAČUNA GRADA ZAGREBA",null,null,{"$f":"E135","v":1178000},{"$f":"F135","v":1204900},{"$f":"G135","v":1219200}]
[null,"III. SVEUKUPNO  PRIHODI I PRIMICI ",null,null,{"$f":"E133+E140","v":8903500},{"$f":"F133+F140","v":8953474},{"$f":"G133+G140","v":8987198}]
["⑬","VIŠAK/MANJAK IZ PRETHODNE(IH) GODINE KOJI ĆE SE POKRITI /RASPOREDITI"]
[null,"VIŠAK/MANJAK IZ PRETHODNE(IH) GODINE KOJI ĆE SE POKRITI /RASPOREDITI, A KOJI JE POSLJEDICA FINANCIRANJA EU PROJEKATA"]
[null,"SVEUKUPNO ZA RASPORED",null,null,{"$f":"E141+E142+E143","v":8903500},{"$f":"F141+F142+F143","v":8953474},{"$f":"G141+G142+G143","v":8987198}]

{"sheet":"RASHODI - SŠ- ","index":2,"n_rows":136,"n_cols":20,"rows_kept":136,"cut":false,"hidden":false,"merged":[[124,0,124,2],[6,8,7,8],[6,9,7,9],[6,12,7,12],[6,13,7,13],[0,17,0,19],[1,0,1,19],[6,0,7,0],[6,1,7,1],[6,2,7,2],[6,3,7,3],[6,4,7,4],[6,5,7,5],[6,6,7,6],[6,7,7,7],[6,17,7,17],[6,18,7,18],[95,39,95,41],[6,16,7,16],[95,58,95,60],[95,77,95,79],[95,96,95,98],[6,19,7,19],[95,20,95,22],[95,229,95,231],[99,0,99,2],[99,20,99,22],[99,39,99,41],[99,58,99,60],[99,77,99,79],[99,96,99,98],[99,115,99,117],[99,134,99,136],[99,153,99,155],[95,115,95,117],[95,134,95,136],[95,153,95,155],[95,172,95,174],[95,191,95,193],[95,210,95,212],[99,172,99,174],[99,191,99,193],[99,210,99,212],[99,229,99,231],[103,0,103,2],[135,17,135,19],[2,0,2,4],[132,0,132,2],[109,0,109,2],[95,0,95,2],[8,16,8,17],[12,0,12,2],[26,0,26,2],[27,0,27,2],[59,0,59,2],[67,0,67,2],[6,14,7,14],[6,15,7,15],[6,10,7,10],[6,11,7,11],[128,0,128,2]]}
[null,null,null,null,null,null,null,null,null,null,null,null,null,null,null,null,null,"Obrazac FIN. PL.- SŠ/UD"]
["PLAN RASHODA  I  IZDATAKA  2020.-2022."]
["Korisnik proračuna:SŠ CENTAR ZA ODGOJ I OBRAZOVANJE,ZAGREB; Zagorska 14"]
["Kontak osoba:Ankica Marić",null,"Ankica Marić"]
["Tel:",null,"01 36 43 437"]
[]
["Poz.","Broj \nek.klas.","Naziv","PLAN\n2019.\n\n1.1.-30.6.2019.","PRIJEDLOG PLANA ZA 2020.","RASHODI ZA ZAPOSLENE KOJI SE FINANCIRAJU IZ DRŽAVNOG PRORAČUNA (konto 636 izv.fin. 52) ","PLANIRANI PRIHODI I PRIMICI IZ NADLEŽNOG PRORAČUNA   ZA 2020.\n(konto 671, izv.fin. 11)     ","PLANIRANI PRIHODI I PRIMICI KOJI NISU DOBIVENI S RAČUNA GRADA ZAGREBA ZA 2020.","Pomoći iz inozemstva i od subjekata unutar općeg proračuna \n(skupina konta 63, izv.fin 51,52 i 56)","Prihodi od imovine (skupina konta 64, izv.fin. 11 i 43)","Prihodi od upravnih i administrativnih pristojbi, pristojbi po posebnim propisima i naknada (skupina konta 65, izv.fin. 11 i 43)","Prihodi od prodaje proizvoda i robe te pruženih usluga i prihodi od donacija (skupina konta 66, izv.fin. 31 i 61 )","Prihodi iz nadležnog proračuna i HZZO-a na temelju ugovornih obveza (konto 673, izv.fin. 43)","Kazne, upravne mjere i ostali prihodi (skupina konta 68, izv fin. 11)","Prihodi od prodaje proizvedene dugotrajne imovine (skupina konta 72 i 73, izv.fin. 11)","Primici od zaduživanja (skupina konta 81, 83 i 84, izv.fin 11 i 81)","Višak/manjak iz prethodne(ih) godine koji će se pokriti/\nrasporediti","Višak/manjak iz prethodne(ih) godine koji će se pokriti/rasporediti, a koji je posljedica financiranje EU projekata","PRIJEDLOG PLANA ZA 2021.","PRIJEDLOG PLANA ZA 2022."]
[]
[null,null,null,null,null,"⑭","⑫",null,"①","②","③","④","⑤","⑥","⑦ I ⑧","⑨,⑩ I ⑪","⑬"]
[1,2,3,null,"4=5+6+7+16+17",5,6,"7=8+9+10+11+ 12+13+14+15",8,9,10,11,12,13,14,15,16,17,18,19]
[]
[null,null,"SVEUKUPNO:",{"$f":"D14+D27+D68","v":151652999.83500001},{"$f":"E14+E27+E68","v":8903500},7587500,1178000,138000,0,0,118000,20000,0,0,0,0,0,0,8953474.1999999993,8987198.7503999993]
[]
[null,"31","RASHODI ZA ZAPOSLENE",{"$f":"D15+D18+D20","v":10819999.835000001},{"$f":"E15+E18+E20","v":7357000},{"$f":"F15+F18+F20","v":7357000},null,null,null,null,null,{"$f":"L15+L18+L20","v":0},null,null,null,null,null,null,{"$f":"S15+S18+S20","v":7371714},7386457.4279999994]
[null,"311 ","PLAĆE",{"$f":"SUM(D16)","v":5400000},{"$f":"SUM(E16:E17)","v":6122000},{"$f":"SUM(F16:F17)","v":6122000},null,null,null,null,{"$f":"SUM(K16:K17)","v":0},{"$f":"SUM(L16:L17)","v":0},null,null,null,null,null,null,{"$f":"SUM(S16:S17)","v":6134244},{"$f":"SUM(T16:T17)","v":6146512.4879999999}]
[null,"3111","Plaće za redovan rad",5400000,{"$f":"F16+G16+H16+Q16+R16","v":6032000},6032000,null,{"$f":"SUM(I16:P16)","v":0},null,null,0,0,null,null,null,null,null,null,{"$f":"SUM(E16*1.002)","v":6044064},{"$f":"SUM(S16*1.002)","v":6056152.1279999996}]
[null,"3113","Plaće za prekovremeni rad",null,{"$f":"F17+G17+H17+Q17+R17","v":90000},90000,null,0,null,null,0,0,null,null,null,null,null,null,{"$f":"SUM(E17*1.002)","v":90180},{"$f":"SUM(S17*1.002)","v":90360.36}]
[null,312,"OSTALI RASHODI ZA ZAPOSLENE",{"$f":"SUM(D19)","v":20000},190000,{"$f":"SUM(F19)","v":190000},null,0,null,null,{"$f":"SUM(K19)","v":0},{"$f":"SUM(L19)","v":0},null,null,null,null,null,null,190380,190760.76]
[null,"3121","Ostali rashodi za zaposlene",20000,{"$f":"F19+G19+H19+Q19+R19","v":190000},190000,null,{"$f":"SUM(I19:P19)","v":0},null,null,0,0,null,null,null,null,null,null,{"$f":"SUM(E19*1.002)","v":190380},{"$f":"SUM(S19*1.002)","v":190760.76}]
[null,313,"DOPRINOSI NA PLAĆE",{"$f":"SUM(D21:D21)","v":5399999.835},{"$f":"SUM(E21:E21)","v":1045000},{"$f":"SUM(F21:F21)","v":1045000},null,0,null,null,{"$f":"SUM(K21:K21)","v":0},{"$f":"SUM(L21:L21)","v":0},null,null,null,null,null,null,{"$f":"SUM(S21:S21)","v":1047090},{"$f":"SUM(T21:T21)","v":1049184.18}]
[null,"3132","Doprinos za obvezno zdravstveno osiguranje",{"$f":"D16-0.165","v":5399999.835},{"$f":"F21+G21+H21+Q21+R21","v":1045000},1045000,null,0,null,null,0,0,null,null,null,null,null,null,{"$f":"SUM(E21*1.002)","v":1047090},{"$f":"SUM(S21*1.002)","v":1049184.18}]
[null,null,null,null,null,null,null,null,null,null,0]
[null,"3","RASHODI  POSLOVANJA",{"$f":"D29+D69","v":113172306},null,null,{"$f":"G29+G69","v":918000}]
[null,"4","RASHODI ZA NABAVU NEFINANCIJSKE IMOVINE",{"$f":"D61+D70","v":27660694},null,null,{"$f":"G61+G70","v":0}]
[null,null,null,{"$f":"D23+D24","v":140833000},null,null,{"$f":"G23+G24","v":918000}]
[]
["Program 1001. DECENTRALIZIRANA SREDSTVA ZA SREDNJE ŠKOLE  I UČENIČKE DOMOVE",null,null,{"$f":"SUM(D28+D60)","v":88633000},{"$f":"SUM(E28+E60)","v":1136500},{"$f":"SUM(F28+F60)","v":30500},968000,138000,0,0,118000,20000,0,0,0,0,0,0,1162412.2000000002,1176361.1464]
["Aktivnost A10001. REDOVNA DJELATNOST SREDNJIH ŠKOLA\n I UČENIČKIH DOMOVA",null,null,{"$f":"SUM(D30+D34+D40+D50+D55)","v":72597306},{"$f":"SUM(E30+E34+E40+E50+E55)","v":876500},{"$f":"SUM(F30+F34+F40+F50+F55)","v":30500},708000,138000,0,0,118000,20000,0,0,0,0,0,0,896484.20000000007,907242.01039999991]
[null,"3 ","RASHODI  POSLOVANJA ",{"$f":"D30+D34+D40+D50+D55","v":72597306},null,null,{"$f":"G30+G34+G40+G50+G55","v":708000}]
[null,"321","Naknade troškova zaposlenima",{"$f":"SUM(D31:D33)","v":18452471},{"$f":"SUM(E31:E33)","v":200000},{"$f":"SUM(F31:F33)","v":0},200000,0,{"$f":"SUM(I31:I33)","v":0},0,0,0,0,0,0,0,0,0,204560,207014.72]
["1","3211","Službena putovanja",323200,{"$f":"F31+G31+H31+Q31+R31","v":25000},null,25000,{"$f":"SUM(I31:P31)","v":0},null,null,null,null,null,null,null,null,null,null,{"$f":"SUM(E31*1.0228)","v":25570},{"$f":"SUM(S31*1.012)","v":25876.84}]
["2","3212","Naknade za prijevoz, za rad na terenu i odvojeni život ",17674871,{"$f":"F32+G32+H32+Q32+R32","v":165000},null,165000,{"$f":"SUM(I32:P32)","v":0},null,null,null,null,null,null,null,null,null,null,{"$f":"SUM(E32*1.0228)","v":168762},{"$f":"SUM(S32*1.012)","v":170787.144}]
["3","3213","Stručno usavršavanje zaposlenika",454400,{"$f":"F33+G33+H33+Q33+R33","v":10000},null,10000,{"$f":"SUM(I33:P33)","v":0},null,null,null,null,null,null,null,null,null,null,{"$f":"SUM(E33*1.0228)","v":10228},{"$f":"SUM(S33*1.012)","v":10350.736000000001}]
[null,"322","Rashodi za materijal i energiju",{"$f":"SUM(D35:D39)","v":35438635},{"$f":"SUM(E35:E39)","v":416000},{"$f":"SUM(F35:F39)","v":17000},{"$f":"SUM(G35:G39)","v":264000},135000,0,0,115000,20000,0,0,0,0,0,0,425484.79999999999,430590.6176]
["4","3221","Uredski materijal i ostali materijalni rashodi",2486000,{"$f":"F35+G35+H35+Q35+R35","v":53000},17000,16000,{"$f":"SUM(I35:P35)","v":20000},null,null,20000,null,null,null,null,null,null,null,{"$f":"SUM(E35*1.0228)","v":54208.399999999994},{"$f":"SUM(S35*1.012)","v":54858.900799999996}]
["5","3222","Materijal i sirovine",13883524,178000,null,63000,{"$f":"SUM(I36:P36)","v":115000},null,null,95000,20000,null,null,null,null,null,null,{"$f":"SUM(E36*1.0228)","v":182058.4},{"$f":"SUM(S36*1.012)","v":184243.10079999999}]
["6","3223","Energija",18016611,140000,null,140000,{"$f":"SUM(I37:P37)","v":0},null,null,null,null,null,null,null,null,null,null,{"$f":"SUM(E37*1.0228)","v":143192},{"$f":"SUM(S37*1.012)","v":144910.304}]
["7","3224","Materijal i dijelovi za tekuće investicijsko održavanje",837000,25000,null,25000,0,null,null,null,null,null,null,null,null,null,null,{"$f":"SUM(E38*1.0228)","v":25570},{"$f":"SUM(S38*1.012)","v":25876.84}]
["8","3225","Sitni inventar i auto gume",215500,20000,null,20000,0,null,null,null,null,null,null,null,null,null,null,{"$f":"SUM(E39*1.0228)","v":20456},{"$f":"SUM(S39*1.012)","v":20701.472000000002}]
[null,"323","Rashodi za usluge",{"$f":"SUM(D41:D49)","v":17247700},{"$f":"SUM(E41:E49)","v":221000},{"$f":"SUM(F41:F49)","v":0},221000,0,0,0,0,0,0,0,0,0,0,0,226038.8,228751.26559999996]
["9","3231","Usluge telefona, pošte i prijevoza",1788000,{"$f":"F41+G41+H41+Q41+R41","v":33000},null,33000,{"$f":"SUM(I41:P41)","v":0},null,null,null,null,null,null,null,null,null,null,{"$f":"SUM(E41*1.0228)","v":33752.399999999994},{"$f":"SUM(S41*1.012)","v":34157.428799999994}]
["10","3232","Usluge tekućeg i investicijskog održavanja",5164000,100000,null,100000,0,null,null,null,null,null,null,null,null,null,null,102280,103507.36]
["11","3233","Usluge promidžbe i informiranja",162800,5000,null,5000,0,null,null,null,null,null,null,null,null,null,null,5114,5175.3680000000004]
["12","3234","Komunalne usluge",3376000,27000,null,27000,0,null,null,null,null,null,null,null,null,null,null,27615.599999999999,27946.9872]
["13","3235","Zakupnine i najamnine",4400000,0,null,null,0,null,null,null,null,null,null,null,null,null,null,0,0]
["14","3236","Zdravstvene i veterinarske usluge",1265000,13000,null,13000,0,null,null,null,null,null,null,null,null,null,null,13296.4,13455.9568]
["15","3237","Intelektualne i osobne usluge",319000,3000,null,3000,0,null,null,null,null,null,null,null,null,null,null,3068.3999999999996,3105.2207999999996]
["16","3238","Računalne usluge",123900,25000,null,25000,0,null,null,null,null,null,null,null,null,null,null,25570,25876.84]
["17","3239","Ostale usluge",649000,15000,null,15000,0,null,null,null,null,null,null,null,null,null,null,15341.999999999998,15526.103999999998]
[null,"329","Ostali nespomenuti rashodi poslovanja",{"$f":"SUM(D51:D54)","v":1110100},{"$f":"SUM(E51:E54)","v":35500},13500,19000,3000,0,0,3000,0,0,0,0,0,0,0,36309.4,36745.112800000003]
["18","3292","Premije osiguranja",460000,{"$f":"F51+G51+H51+Q51+R51","v":13000},null,10000,{"$f":"SUM(I51:P51)","v":3000},null,null,3000,null,null,null,null,null,null,null,{"$f":"SUM(E51*1.0228)","v":13296.4},{"$f":"SUM(S51*1.012)","v":13455.9568}]
["19","3293","Reprezentacija",79100,0,null,null,0,null,null,null,null,null,null,null,null,null,null,{"$f":"SUM(E52*1.0228)","v":0},{"$f":"SUM(S52*1.012)","v":0}]
["20","3294","Članarine",6300,0,null,null,0,null,null,null,null,null,null,null,null,null,null,{"$f":"SUM(E53*1.0228)","v":0},{"$f":"SUM(S53*1.012)","v":0}]
["21","3299","Ostali nespomenuti rashodi poslovanja",564700,22500,13500,9000,0,null,null,null,null,null,null,null,null,null,null,{"$f":"SUM(E54*1.0228)","v":23013},{"$f":"SUM(S54*1.012)","v":23289.155999999999}]
[null,"343","Ostali financijski rashodi",{"$f":"SUM(D56:D58)","v":348400},{"$f":"SUM(E56:E58)","v":4000},0,4000,0,0,0,0,0,0,0,0,0,0,0,4091.2,4140.2943999999998]
[22,"3431","Bankarske usluge i usluge platnog prometa",151200,{"$f":"F56+G56+H56+Q56+R56","v":3000},null,3000,{"$f":"SUM(I56:P56)","v":0},null,null,null,null,null,null,null,null,null,null,{"$f":"SUM(E56*1.0228)","v":3068.3999999999996},{"$f":"SUM(S56*1.012)","v":3105.2207999999996}]
[23,"3433","Zatezne kamate",134000,{"$f":"F57+G57+H57+Q57+R57","v":1000},null,1000,{"$f":"SUM(I57:P57)","v":0},null,null,null,null,null,null,null,null,null,null,{"$f":"SUM(E57*1.0228)","v":1022.8},{"$f":"SUM(S57*1.012)","v":1035.0735999999999}]
[24,"3434","Ostali nespomenuti financijski rashodi",63200,{"$f":"F58+G58+H58+Q58+R58","v":0},null,null,{"$f":"SUM(I58:P58)","v":0},null,null,null,null,null,null,null,null,null,null,{"$f":"SUM(E58*1.0228)","v":0},{"$f":"SUM(S58*1.012)","v":0}]
[null,null,null,null,null,null,null,null,null,null,null,null,null,null,null,null,null,null,{"$f":"SUM(E59*1.0228)","v":0},{"$f":"SUM(S59*1.012)","v":0}]
["Projekt K100002. ODRŽAVANJE I OPREMANJE SREDNJIH ŠKOLA I UČENIČKIH DOMOVA",null,null,{"$f":"SUM(D62+D64)","v":16035694},{"$f":"SUM(E62+E64)","v":260000},{"$f":"SUM(F62+F64)","v":0},260000,0,0,0,0,0,0,0,0,0,0,0,265928,269119.13599999994]
[null,4,"RASHODI ZA NABAVU NEFINANCIJSKE IMOVINE",{"$f":"D62+D64","v":16035694}]
[null,"421","Građevinski objekti",{"$f":"SUM(D63)","v":13635694},{"$f":"SUM(E63)","v":240000},{"$f":"SUM(F63)","v":0},240000,0,0,0,0,0,0,0,0,0,0,0,245471.99999999997,248417.66399999996]
[25,"4212","Poslovni objekti ",13635694,{"$f":"F63+G63+H63+Q63+R63","v":240000},0,240000,{"$f":"SUM(I63:P63)","v":0},null,null,null,null,null,null,null,null,null,null,{"$f":"SUM(E63*1.0228)","v":245471.99999999997},{"$f":"SUM(S63*1.012)","v":248417.66399999996}]
[null,"422","Postrojenja i oprema",{"$f":"SUM(D65:D66)","v":2400000},{"$f":"SUM(E65:E66)","v":20000},0,20000,0,0,0,0,0,0,0,0,0,0,0,20456,20701.472000000002]
[26,"4221","Uredska oprema i namještaj",1700000,{"$f":"F65+G65+H65+Q65+R65","v":10000},null,10000,{"$f":"SUM(I65:P65)","v":0},null,null,null,null,null,null,null,null,null,null,{"$f":"SUM(E65*1.0228)","v":10228},{"$f":"SUM(S65*1.012)","v":10350.736000000001}]
[27,"4227","Uređaji, strojevi i oprema za ostale namjene",700000,{"$f":"F66+G66+H66+Q66+R66","v":10000},null,10000,{"$f":"SUM(I66:P66)","v":0},null,null,null,null,null,null,null,null,null,null,{"$f":"SUM(E66*1.0228)","v":10228},{"$f":"SUM(S66*1.012)","v":10350.736000000001}]
[]
["Program 1002. POJAČANI STANDARD U SREDNJEM ŠKOLSTVU",null,null,{"$f":"D71+D75+D79+D83+D96+D100+D104+D110+D125+D129","v":52200000},{"$f":"E71+E75+E79+E83+E96+E100+E104+E110+E125+E129","v":410000},{"$f":"F71+F75+F79+F83+F96+F100+F104+F110+F125+F129","v":200000},{"$f":"G71+G75+G79+G83+G96+G100+G104+G110+G125+G129","v":210000},0,0,0,0,0,0,0,0,0,0,0,419348,424380.17599999992]
[null,"3","RASHODI  POSLOVANJA",{"$f":"D72+D76+D80+D84+D86+D88+D91+D93+D97+D101+D105+D107+D111+D113+D126+D130","v":40575000},null,null,{"$f":"G72+G76+G80+G84+G86+G88+G91+G93+G97+G101+G105+G107+G111+G113+G126+G130","v":210000}]
[null,"4","RASHODI ZA NABAVU NEFINANCIJSKE IMOVINE",{"$f":"D115+D117+D120+D122","v":11625000},null,null,{"$f":"G115+G117+G120+G122","v":0}]
["Aktivnost A100001. NAKNADE ZA RAD ŠKOLSKIH ODBORA",null,null,{"$f":"SUM(D72)","v":2000000},{"$f":"SUM(E72)","v":40000},{"$f":"SUM(F72)","v":0},40000,0,0,0,0,0,0,0,0,0,0,0,40912,41402.944000000003]
[null,"329","Ostali nespomenuti rashodi poslovanja",{"$f":"SUM(D73)","v":2000000},{"$f":"SUM(E73)","v":40000},{"$f":"SUM(F73)","v":0},40000,0,0,0,0,0,0,0,0,0,0,0,40912,41402.944000000003]
[28,"3291","Naknade za rad predstavničkih i izvršnih tijela, povj. i sl",2000000,{"$f":"F73+G73+H73+Q73+R73","v":40000},null,40000,{"$f":"SUM(I73:P73)","v":0},null,null,null,null,null,null,null,null,null,null,{"$f":"SUM(E73*1.0228)","v":40912},{"$f":"SUM(S73*1.012)","v":41402.944000000003}]
[null,null,null,null,null,null,null,null,null,null,null,null,null,null,null,null,null,null,{"$f":"SUM(E74*1.0228)","v":0},{"$f":"SUM(S74*1.012)","v":0}]
["Aktivnost A100002. DONACIJE PRIVATNIM SREDNJIM ŠKOLAMA",null,null,{"$f":"SUM(D76)","v":900000},{"$f":"SUM(E76)","v":0},{"$f":"SUM(F76)","v":0},0,0,0,0,0,0,0,0,0,0,0,0,0,0]
[null,"381","Tekuće donacije",{"$f":"SUM(D77)","v":900000},{"$f":"SUM(E77)","v":0},0,0,0,0,0,0,0,0,0,0,0,0,0,0,0]
[29,"3811","Tekuće donacije u novcu",900000,{"$f":"F77+G77+H77+Q77+R77","v":0},null,0,{"$f":"SUM(I77:P77)","v":0},null,null,null,null,null,null,null,null,null,null,{"$f":"SUM(E77*1.0228)","v":0},{"$f":"SUM(S77*1.012)","v":0}]
[null,null,null,null,null,null,null,null,null,null,null,null,null,null,null,null,null,null,{"$f":"SUM(E78*1.0228)","v":0},{"$f":"SUM(S78*1.012)","v":0}]
["Aktivnost A100003. IZVANNASTAVNE I OSTALE AKTIVNOSTI",null,null,{"$f":"SUM(D80)","v":2100000},{"$f":"SUM(E80)","v":0},{"$f":"SUM(F80)","v":0},0,0,0,0,0,0,0,0,0,0,0,0,0,0]
[null,"329","Ostali nespomenuti rashodi poslovanja",{"$f":"SUM(D81)","v":2100000},{"$f":"SUM(E81)","v":0},{"$f":"SUM(F81)","v":0},0,0,0,0,0,0,0,0,0,0,0,0,0,0]
[30,"3299","Ostali nespomenuti rashodi poslovanja",2100000,{"$f":"F81+G81+H81+Q81+R81","v":0},null,null,{"$f":"SUM(I81:P81)","v":0},null,null,null,null,null,null,null,null,null,null,{"$f":"SUM(E81*1.0228)","v":0},{"$f":"SUM(S81*1.012)","v":0}]
[null,null,null,null,null,null,null,null,null,null,null,null,null,null,null,null,null,null,{"$f":"SUM(E82*1.0228)","v":0},{"$f":"SUM(S82*1.012)","v":0}]
["Aktivnost A100007. POMOĆNICI U NASTAVI",null,null,{"$f":"SUM(D84+D86+D88+D91+D93)","v":1840000},{"$f":"SUM(E84+E86+E88+E91+E93)","v":110000},{"$f":"SUM(F84+F86+F88+F91+F93)","v":0},110000,0,0,0,0,0,0,0,0,0,0,0,112507.99999999999,113858.09599999999]
[null,"311","Plaće (Bruto)",{"$f":"SUM(D85)","v":202000},{"$f":"SUM(E85)","v":0},{"$f":"SUM(F85)","v":0},0,0,0,0,0,0,0,0,0,0,0,0,0,0]
[31,"3111","Plaće za redovan rad",202000,{"$f":"F85+G85+H85+Q85+R85","v":0},null,null,{"$f":"SUM(I85:P85)","v":0},null,null,null,null,null,null,null,null,null,null,{"$f":"SUM(E85*1.0228)","v":0},{"$f":"SUM(S85*1.012)","v":0}]
[null,"312","Ostali rashodi za zaposlene",{"$f":"SUM(D87)","v":19000},{"$f":"SUM(E87)","v":0},{"$f":"SUM(F87)","v":0},0,0,0,0,0,0,0,0,0,0,0,0,0,0]
[32,"3121","Ostali rashodi za zaposlene",19000,{"$f":"F87+G87+H87+Q87+R87","v":0},null,null,{"$f":"SUM(I87:P87)","v":0},null,null,null,null,null,null,null,null,null,null,{"$f":"SUM(E87*1.0228)","v":0},{"$f":"SUM(S87*1.012)","v":0}]
[null,"313","Doprinosi za plaće",{"$f":"SUM(D89+D90)","v":43000},{"$f":"SUM(E89+E90)","v":0},{"$f":"SUM(F89+F90)","v":0},0,0,0,0,0,0,0,0,0,0,0,0,0,0]
[33,"3132","Doprinosi za zdravstveno osiguranje",40000,{"$f":"F89+G89+H89+Q89+R89","v":0},null,null,{"$f":"SUM(I89:P89)","v":0},null,null,null,null,null,null,null,null,null,null,{"$f":"SUM(E89*1.0228)","v":0},{"$f":"SUM(S89*1.012)","v":0}]
[34,"3133","Doprinosi za obavezno osiguranje u slučaju nezaposlenosti",3000,{"$f":"F90+G90+H90+Q90+R90","v":0},null,null,{"$f":"SUM(I90:P90)","v":0},null,null,null,null,null,null,null,null,null,null,{"$f":"SUM(E90*1.0228)","v":0},{"$f":"SUM(S90*1.012)","v":0}]
[null,"321","Naknade troškova zaposlenima",{"$f":"SUM(D92)","v":113000},{"$f":"SUM(E92)","v":0},{"$f":"SUM(F92)","v":0},0,0,0,0,0,0,0,0,0,0,0,0,0,0]
[35,"3212","Naknade za prijevoz, za rad na terenu i odvojeni život",113000,{"$f":"F92+G92+H92+Q92+R92","v":0},null,null,{"$f":"SUM(I92:P92)","v":0},null,null,null,null,null,null,null,null,null,null,{"$f":"SUM(E92*1.0228)","v":0},{"$f":"SUM(S92*1.012)","v":0}]
[null,"323","Rashodi za usluge",{"$f":"SUM(D94)","v":1463000},{"$f":"SUM(E94)","v":110000},{"$f":"SUM(F94)","v":0},110000,0,0,0,0,0,0,0,0,0,0,0,112507.99999999999,113858.09599999999]
[36,"3237","Intelektualne i osobne usluge",1463000,{"$f":"F94+G94+H94+Q94+R94","v":110000},null,110000,{"$f":"SUM(I94:P94)","v":0},null,null,null,null,null,null,null,null,null,null,{"$f":"SUM(E94*1.0228)","v":112507.99999999999},{"$f":"SUM(S94*1.012)","v":113858.09599999999}]
[null,null,null,null,null,null,null,null,null,null,null,null,null,null,null,null,null,null,{"$f":"SUM(E95*1.0228)","v":0},{"$f":"SUM(S95*1.012)","v":0}]
["Aktivnost A100008. SUFINANCIRANJE MEĐUMJESNOG \nJAVNOG PRIJEVOZA UČENIKA",null,null,{"$f":"SUM(D97)","v":20000000},{"$f":"SUM(E97)","v":245000},200000,45000,0,0,0,0,0,0,0,0,0,0,0,250585.99999999997,253593.03199999998]
[null,"372","Ostale naknade građanima i kućanstvima iz proračuna",{"$f":"SUM(D98)","v":20000000},{"$f":"SUM(E98)","v":245000},200000,45000,0,0,0,0,0,0,0,0,0,0,0,250585.99999999997,253593.03199999998]
[37,"3722","Naknade građanima i kućanstvima u naravi",20000000,{"$f":"F98+G98+H98+Q98+R98","v":245000},200000,45000,{"$f":"SUM(I98:P98)","v":0},null,null,null,null,null,null,null,null,null,null,{"$f":"SUM(E98*1.0228)","v":250585.99999999997},{"$f":"SUM(S98*1.012)","v":253593.03199999998}]
[null,null,null,null,null,null,null,null,null,null,null,null,null,null,null,null,null,null,{"$f":"SUM(E99*1.0228)","v":0}]
["Aktivnost A100009. NABAVA UDŽBENIKA",null,null,{"$f":"SUM(D101)","v":5000000},{"$f":"SUM(E101)","v":15000},{"$f":"SUM(F101)","v":0},15000,0,0,0,0,0,0,0,0,0,0,0,15341.999999999998,15526.103999999998]
[null,"372","Ostale naknade građanima i kućanstvima iz proračuna",{"$f":"SUM(D102)","v":5000000},{"$f":"SUM(E102)","v":15000},0,{"$f":"SUM(G102)","v":15000},0,0,0,0,0,0,0,0,0,0,0,15341.999999999998,15526.103999999998]
[38,"3722","Naknade građanima i kućanstvima u naravi",5000000,{"$f":"F102+G102+H102+Q102+R102","v":15000},null,15000,{"$f":"SUM(I102:P102)","v":0},null,null,null,null,null,null,null,null,null,null,{"$f":"SUM(E102*1.0228)","v":15341.999999999998},{"$f":"SUM(S102*1.012)","v":15526.103999999998}]
[null,null,null,null,null,null,null,null,null,null,null,null,null,null,null,null,null,null,{"$f":"SUM(E103*1.0228)","v":0}]
["Aktivnost A100010. REDOVNA DJELATNOST SREDNJIH ŠKOLA\n I UČENIČKIH DOMOVA",null,null,{"$f":"SUM(D105+D107)","v":3325000},{"$f":"SUM(E105+E107)","v":0},0,0,0,0,0,0,0,0,0,0,0,0,0,0,0]
[null,"322","Rashodi za materijal i energiju",{"$f":"SUM(D106)","v":2850000},{"$f":"SUM(E106)","v":0},{"$f":"SUM(F106)","v":0},0,0,0,0,0,0,0,0,0,0,0,0,0,0]
[39,"3223","Energija",2850000,{"$f":"F106+G106+H106+Q106+R106","v":0},null,null,{"$f":"SUM(I106:P106)","v":0},null,null,null,null,null,null,null,null,null,null,{"$f":"SUM(E106*1.0228)","v":0},{"$f":"SUM(S106*1.012)","v":0}]
[null,"323","Rashodi za usluge",{"$f":"SUM(D108)","v":475000},{"$f":"SUM(E108)","v":0},{"$f":"SUM(F108)","v":0},0,0,0,0,0,0,0,0,0,0,0,0,0,0]
[40,"3234","Komunalne usluge",475000,{"$f":"F108+G108+H108+Q108+R108","v":0},null,null,{"$f":"SUM(I108:P108)","v":0},null,null,null,null,null,null,null,null,null,null,{"$f":"SUM(E108*1.0228)","v":0},{"$f":"SUM(S108*1.012)","v":0}]
[null,null,null,null,null,null,null,null,null,null,null,null,null,null,null,null,null,null,{"$f":"SUM(E109*1.0228)","v":0},{"$f":"SUM(S109*1.012)","v":0}]
["Projekt K100004. ODRŽAVANJE I OPREMANJE SREDNJIH ŠKOLA ZA POBOLJŠANJE STANDARDA",null,null,{"$f":"SUM(D111+D113+D115+D117+D120+D122)","v":15975000},{"$f":"SUM(E111+E113+E115+E117+E120+E122)","v":0},{"$f":"SUM(F111+F113+F115+F117+F120+F122)","v":0},0,0,0,0,0,0,0,0,0,0,0,0,0,0]
[null,"323","Rashodi za usluge",{"$f":"SUM(D112)","v":4000000},{"$f":"SUM(E112)","v":0},0,0,0,0,0,0,0,0,0,0,0,0,0,0,0]
[41,"3232","Usluge tekućeg i investicijskog održavanja",4000000,{"$f":"F112+G112+H112+Q112+R112","v":0},null,null,{"$f":"SUM(I112:P112)","v":0},null,null,null,null,null,null,null,null,null,null,{"$f":"SUM(E112*1.0228)","v":0},{"$f":"SUM(S112*1.012)","v":0}]
[null,"329","Ostali nespomenuti rashodi poslovanja",{"$f":"SUM(D114)","v":350000},{"$f":"SUM(E114)","v":0},0,0,0,0,0,0,0,0,0,0,0,0,0,0,0]
[42,3292,"Premije osiguranja",350000,{"$f":"F114+G114+H114+Q114+R114","v":0},null,null,{"$f":"SUM(I114:P114)","v":0},null,null,null,null,null,null,null,null,null,null,{"$f":"SUM(E114*1.0228)","v":0},{"$f":"SUM(S114*1.012)","v":0}]
[null,"421","Građevinski objekti",{"$f":"SUM(D116)","v":9925000},{"$f":"SUM(E116)","v":0},0,0,0,0,0,0,0,0,0,0,0,0,0,0,0]
[43,"4212","Poslovni objekti",9925000,{"$f":"F116+G116+H116+Q116+R116","v":0},null,null,{"$f":"SUM(I116:P116)","v":0},null,null,null,null,null,null,null,null,null,null,{"$f":"SUM(E116*1.0228)","v":0},{"$f":"SUM(S116*1.012)","v":0}]
[null,"422","Postrojenja i oprema",{"$f":"SUM(D118+D119)","v":1000000},{"$f":"SUM(E118+E119)","v":0},0,0,0,0,0,0,0,0,0,0,0,0,0,0,0]
[44,4221,"Uredska oprema i namještaj",500000,{"$f":"F118+G118+H118+Q118+R118","v":0},null,null,{"$f":"SUM(I118:P118)","v":0},null,null,null,null,null,null,null,null,null,null,{"$f":"SUM(E118*1.0228)","v":0},{"$f":"SUM(S118*1.012)","v":0}]
[45,4227,"Uređaji, strojevi i oprema za ostale namjene",500000,{"$f":"F119+G119+H119+Q119+R119","v":0},null,null,{"$f":"SUM(I119:P119)","v":0},null,null,null,null,null,null,null,null,null,null,{"$f":"SUM(E119*1.0228)","v":0},{"$f":"SUM(S119*1.012)","v":0}]
[null,"423","Prijevozna sredstva ",{"$f":"SUM(D121)","v":200000},{"$f":"SUM(E121)","v":0},0,0,0,0,0,0,0,0,0,0,0,0,0,0,0]
[46,"4231","Prijevozna sredstva u cestovnom prometu",200000,{"$f":"F121+G121+H121+Q121+R121","v":0},null,null,{"$f":"SUM(I121:P121)","v":0},null,null,null,null,null,null,null,null,null,null,{"$f":"SUM(E121*1.0228)","v":0},{"$f":"SUM(S121*1.012)","v":0}]
[null,"424","Knjige, umjetnička djela i ostale izložbene vrijednosti",{"$f":"SUM(D123)","v":500000},{"$f":"SUM(E123)","v":0},{"$f":"SUM(F123)","v":0},0,0,0,0,0,0,0,0,0,0,0,0,0,0]
[47,"4241","Knjige ",500000,{"$f":"F123+G123+H123+Q123+R123","v":0},null,null,{"$f":"SUM(I123:P123)","v":0},null,null,null,null,null,null,null,null,null,null,{"$f":"SUM(E123*1.0228)","v":0},{"$f":"SUM(S123*1.012)","v":0}]
[]
["Projekt T100001. SUFINANCIRANJE PROJEKTA PRIJAVLJENIH NA NATJEČAJE EUROPSKIH FONDOVA ILI PARTNERSTVA ZA EU FONDOVE",null,null,{"$f":"SUM(D126)","v":150000},{"$f":"SUM(E126)","v":0},{"$f":"SUM(F126)","v":0},0,0,0,0,0,0,0,0,0,0,0,0,0,0]
[null,"329","Ostali nespomenuti rashodi poslovanja",{"$f":"SUM(D127)","v":150000},{"$f":"SUM(E127)","v":0},0,0,0,0,0,0,0,0,0,0,0,0,0,0,0]
[48,"3299","Ostali nespomenuti rashodi poslovanja",150000,{"$f":"F127+G127+H127+Q127+R127","v":0},null,null,{"$f":"SUM(I127:P127)","v":0},null,null,null,null,null,null,null,null,null,null,{"$f":"SUM(E127*1.0228)","v":0},{"$f":"SUM(S127*1.012)","v":0}]
[]
["Projekt T100002. ŠKOLSKA SHEMA VOĆE, POVRĆE I MLIJEČNI PROIZVODI",null,null,{"$f":"D130","v":910000},{"$f":"E130","v":0},{"$f":"F130","v":0},0,0,0,0,0,0,0,0,0,0,0,0,0,0]
[null,"322","Rashodi za materijal i energiju",{"$f":"SUM(D131)","v":910000},{"$f":"SUM(E131)","v":0},0,0,0,0,0,0,0,0,0,0,0,0,0,0,0]
[49,"3222","Materijal i sirovine",910000,{"$f":"F131+G131+H131+Q131+R131","v":0},null,null,{"$f":"SUM(I131:P131)","v":0},null,null,null,null,null,null,null,null,null,null,{"$f":"SUM(E131*1.0228)","v":0},{"$f":"SUM(S131*1.012)","v":0}]
[]
["UKUPNO -  0904  - dec +jp:",null,null,{"$f":"D68+D27","v":140833000},{"$f":"E68+E27","v":1546500},230500,1178000,138000,0,0,118000,20000,0,0,0,0,0,0,1581760.2000000002,1600741.3223999999]
[null,null,null,{"$f":"D12-D133","v":10819999.835000008}]
["U Zagrebu,________________________ 2019.",null,null,{"$f":"D14=D134","v":true},null,null,null,null,null,null,"M.P."]
[null,null,null,null,null,null,null,null,null,null,null,null,null,null,null,null,null,"Potpis Ravnatelja-ice:"]

{"sheet":"dodatna konta","index":3,"n_rows":21,"n_cols":20,"rows_kept":21,"cut":false,"hidden":false,"merged":[[0,17,0,19],[1,0,1,19],[6,0,7,0],[6,1,7,1],[6,2,7,2],[6,3,7,3],[6,4,7,4],[6,5,7,5],[6,6,7,6],[6,7,7,7],[6,18,7,18],[6,19,7,19],[6,8,7,8],[6,9,7,9],[6,10,7,10],[6,11,7,11],[6,12,7,12],[6,13,7,13],[8,16,8,17],[6,14,7,14],[6,15,7,15],[6,16,7,16],[6,17,7,17]]}
[null,null,null,null,null,null,null,null,null,null,null,null,null,null,null,null,null,"Obrazac FIN. PL.- SŠ/UD"]
["PLAN RASHODA I IZDATAKA 2020.-2022."]
["Korisnik proračuna:"]
["Kontak osoba:"]
["Tel:"]
[]
["Poz.","Broj \nek.klas.","Naziv","PLAN\n2019.\n\n1.1.-30.6.2019.","PRIJEDLOG PLANA ZA 2020.","RASHODI ZA ZAPOSLENE KOJI SE FINANCIRAJU IZ DRŽAVNOG PRORAČUNA (konto 636 izv.fin. 52) ","PLANIRANI PRIHODI I PRIMICI IZ NADLEŽNOG PRORAČUNA   ZA 2020.\n(konto 671, izv.fin. 11)     ","PLANIRANI PRIHODI I PRIMICI KOJI NISU DOBIVENI S RAČUNA GRADA ZAGREBA ZA 2020.","Pomoći iz inozemstva i od subjekata unutar općeg proračuna \n(skupina konta 63, izv.fin 51,52 i 56)","Prihodi od imovine (skupina konta 64, izv.fin. 11 i 43)","Prihodi od upravnih i administrativnih pristojbi, pristojbi po posebnim propisima i naknada (skupina konta 65, izv.fin. 11 i 43)","Prihodi od prodaje proizvoda i robe te pruženih usluga i prihodi od donacija (skupina konta 66, izv.fin. 31 i 61 )","Prihodi iz nadležnog proračuna i HZZO-a na temelju ugovornih obveza (konto 673, izv.fin. 43)","Kazne, upravne mjere i ostali prihodi (skupina konta 68, izv fin. 11)","Prihodi od prodaje proizvedene dugotrajne imovine (skupina konta 72 i 73, izv.fin. 11)","Primici od zaduživanja (skupina konta 81, 83 i 84, izv.fin 11 i 81)","Višak/manjak iz prethodne(ih) godine koji će se pokriti/\nrasporediti","Višak/manjak iz prethodne(ih) godine koji će se pokriti/rasporediti, a koji je posljedica financiranje EU projekata","PRIJEDLOG PLANA ZA 2021.","PRIJEDLOG PLANA ZA 2022."]
[]
[null,null,null,null,null,"⑭","⑫",null,"①","②","③","④","⑤","⑥","⑦ I ⑧","⑨,⑩ I ⑪","⑬"]
[1,2,3,null,"4=5+6+7+16+17",5,6,"7=8+9+10+11+ 12+13+14+15",8,9,10,11,12,13,14,15,16,17,18,19]
[]
[null,null,"DODATNA KONTA"]
[null,null,null,null,{"$f":"F13+G13+H13+Q13+R13","v":0},null,null,{"$f":"SUM(I13:P13)","v":0}]
[null,null,null,null,{"$f":"F14+G14+H14+Q14+R14","v":0},null,null,{"$f":"SUM(I14:P14)","v":0}]
[null,null,null,null,0,null,null,0]
[null,null,null,null,0,null,null,0]
[null,null,null,null,0,null,null,0]
[null,null,null,null,0,null,null,0]
[null,null,null,null,0,null,null,{"$f":"SUM(I19:P19)","v":0}]
[null,null,null,null,0,null,null,0]
[null,null,null,null,{"$f":"SUM(E13:E20)","v":0},{"$f":"SUM(F13:F20)","v":0},0,0,0,0,0,0,0,0,0,0,0,0,{"$f":"SUM(S13:S20)","v":0},{"$f":"SUM(T13:T20)","v":0}]

{"sheet":"OBRAZLOŽENJE","index":4,"n_rows":34,"n_cols":2,"rows_kept":34,"cut":false,"hidden":false,"merged":[[33,0,38,0],[33,1,38,1],[20,0,23,0],[20,1,23,1],[24,0,26,0],[24,1,26,1],[27,0,32,0],[27,1,32,1],[8,0,9,0],[8,1,9,1],[10,0,16,0],[10,1,16,1],[17,0,19,0],[17,1,19,1]]}
["Obrazac Obrazloženja financijskog plana"]
[]
[]
["NAZIV KORISNIKA:SREDNJA ŠKOLA CENTAR ZA ODGOJ I OBRAZOVANJE,Zagreb, Zagorska 14"]
[]
["SAŽETAK DJELOKRUGA:","odgoj i obrazovanje učenika u strukovnim  programima za stjecanje niže stručne spreme"]
[]
[]
["1. NAZIV PROGRAMA","\nSrednja škola-Centar za odgoj i obrazovanje, Zagreb, Zagorska 14, srednja je strukovna škola u kojoj se odgaja i obrazuje mladež za stjecanje niže stručne spreme u 14 programa-zanimanja. Imamo i tri skupine učenika po posebnom programu za stjecanje kompetencija u aktivnostima svakodnevnog života uz individualizirani pristup u dobi 17-21. te program produženog stručnog postupka, koji se odvija u pet skupina\n"]
[]
["2.  CILJEVI (što se programom želi postići)","MISIJA ŠKOLE: razumijevanjem i potporom odgajamo i obrazujemo učenike za život u posebnoj srednjoj školi.\nVIZIJA ŠKOLE:\n•Zalažemo se za školovanje djece u onim obrazovnim sredinama koje im pružaju maksimalne mogućnosti da se razvijaju i usavršavaju svoje emocionalne, socijalne i kognitivne vještine, znanja i navike i steknu kompetencije koje će im omogućiti kvalitetno uključivanje u društveni život i svijet rada.\n•Želimo postati Centar potpore edukacijskoj inkluziji u kojem ćemo pružati potporu učenicima, roditeljima i nastavnicima  za uspješno školovanje učenika s teškoćama u inkluzivnim školama.\nMOTO ŠKOLE: Škola koja vraća osmijeh.\n"]
[]
[]
[]
[]
[]
[]
["3. NAČIN OSTVARENJA CILJA (kako se nastoji realizirati program, tko je korisnik ili primatelj usluge)","Program Srednje škole-Centra za odgoj i obrazovanje, Zagreb financira se iz Državnog proračuna (plaće i naknade za zaposlene), proračuna Grada Zagreba (naknade troškova zaposlenih, rashodi za materijal, rashodi za usluge, ostali nespomenuti rashodi i financijski rashodi).                                                                                                                                      Nastava je organizirana u dvije smjene u B-turnusu i jednoj smjeni u A-turnusu koji se izmjenjuju. Redovna i izborna nastava se izvodi prema nastavnim planovima i programima, koje je donijelo Ministarstvo znanosti, obrazovanja i sporta, Godišnjem planu i programu  rada te Školskom kurikulumu za školsku godinu 2019./2020. U školi se izvode i dva fakultativna predmeta: Domaćinstvo i Vjeronauk, koji se financiraju iz proračuna škole."]
[]
[]
["4. ZAKONSKE I DRUGE PODLOGE NA KOJIMA SE ZASNIVA PROGRAM","\nZakon o odgoju i obrazovanju (NN. br. 87/08., 86/09., 92/10., 105/10., 90/1., 16/12., 86/12./ , 94/13, 152/14, 07./17 i 68./18. ) Zakon o ustanovama, NN. br. 76/93., 29/97., 47/99., 35/08. Zakon o proračunu (NN. br. 87/08. 136/12, 15/15., . ), Pravilnik o proračunskim klasifikacijama (NN.br. 26/10 i 120/13) i  Pravilnik o proračunskom računovodstvu i računskom planu (NN. br. 124/14. i  115/15.) Upute za izradu proračuna lokalne i područne (regionalne) samouprave za razdoblje 2020. - 2022. od 17. rujna 2019..Godišnji plan i program rada za školsku godinu 2019./2020.  Školski kurikulum Srednje škole-Centar za odgoj i obrazovanje za školsku godinu 2019./20.  \n"]
[]
[]
[]
["5. POKAZATELJI REZULTATA NA KOJIMA SE ZASNIVAJU IZRAČUNI I OCJENE POTREBNIH SREDSTAVA ","Naša škola je bila domaćin na WorldSkills Croatia Državnom natjecanju za pomoćne cvjećare i Smotre radova učenika s teškoćama. Učenici Matija i Antun su na Smotri osvojili 2. mjesto i srebrne medalje, a Marija i Natalija su u disciplini za pomoćne cvjećare osvojile 3. mjesto i brončane medalje! Nagrada „Profesor Baltazar“  dodijeljena je učenicima naše škole za osvojeno 2. i 3. mjesto kao i njihovim mentoricama dipl. ing. Dijani Matić i prof. Petri Međimorec Grgurić.\nDana 20.11.2018. naša škola je dobila Pohvalu za uspješno provedenu NAJ-AKCIJU 2018. pod nazivom „EKO DŽEMIX“.\nNaša škola je posebnim priznanjem nagrađena za već trogodišnju suradnju, promociju i popularizaciju atletike među srednjoškolskom populacijom učenika na Godišnjoj skupštini atletskog kluba AKOSI Agram od 25.listopada 2018.\n"]
[]
[]
["6. RAZLOG ODSTUPANJA OD PROŠLOGODIŠNJIH PROJEKCIJA","Posljednjih godina  je izraziti pad novoupisanih učenika, radi sve većeg trenda integracije učenika s teškoćama u redovne škole. Ove školske godine upisali smo 153 učenika što je već petu školsku godinu pad ukupnog broja u odnosu na raniji broj upisivanih učenika. Posebne ustanove poput naše financiraju se na jednak način kao i redovne škole. Obzirom na stalan pad učenika i razrednih odjela, a zbog specifičnosti populacije koja se u srednjim školama obrazuje trebalo bi pokušati razmotriti postojeći način financiranja.  Mnogi programi koji se izvode u našoj školi ne financiraju se uopće ili nedostatno : program produženog stručnog postupka (tek se od ove školske godine sufinancira sa 10 kn po učeniku-što nije dostatno), prehrana u školskoj kuhinji, praktična nastava u školskoj knjigovežnici i ugostiteljskom praktikumu, programi posebnih kompetencija u aktivnostima svakodnevnog života itd. Školske ustanove donose godišnje operativne planove prema planu i programu koje je donijelo Ministarstvo znanosti, obrazovanja i sporta. Također, planovi se odnose na nastavnu, a ne na fiskalnu godinu, a to je uzrok mnogim odstupanjima u izvršenju financijskih planova. U ovoj školskoj godini očekujemo veći broj rashoda uzrokovanih zamjenom dotrajale stolarije, sanacijom stubišta, sanitarnih čvorova. Objekt je star i u lošem stanju, pa nas stalno opterećuju razne hitne intervencije i popravci, koji nisu uvijek refundirani. Nastavit ćemo s nabavom klimatizacijskih uređaja zbog velikih vrućina i stare i nefunkcionalne stolarije."]
[]
[]
[]
[]
[]
["7. POKAZATELJI USPJEŠNOSTI: ","Ostvareno je redovno odvijanje nastavnog procesa.  Postotak prolaznosti  u sve tri godine obrazovanja je 94 %.  Prosječna ocjena svih razrednih odjela je 4,00 \nStopa stjecanja kvalifikacije iznosi 95%\nStručno usavršavanje zaposlenika provedeno je prema planu stručnog usavršav\n"]